{"text_format":"2","workbook":"xlsx","n_sheets":19,"sheets":["entrata_-_titoli","entrate_tributarie_-_categorie","entrate_da_trasferimenti_corren","entrate_extratributarie_-_categ","entrate_in_conto_capitale_-_cat","entrate_in_conto_capitale_-_rid","entrate_in_conto_capitale_-_acc","principali_entrate_tributarie","principali_entrate_da_trasferim","principali_entrate_extratributa","principali_entrate_in_conto_cap","spesa_-_titoli","spese_correnti_-_missioni","spese_correnti_-_macroaggregati","spese_in_conto_capitale_-_missi","spese_in_conto_capitale_-_macro","principali_spese_per_investimen","equilibri_di_bilancio","entità_mutui"],"not_rendered":{"charts":21,"images":0,"macros":0,"external_links":0,"defined_names":0,"comments":0,"pivot_tables":0},"unopened":[],"bounds":{"document_bytes":16777216,"sheet_cells":100000,"run_cost":"one","rows_first":2000,"rows_last":500,"rows_between":2000,"halvings":0,"cell_chars":16384,"cell_head_chars":4096},"cells_cut":0,"cells_raw":0,"read":"whole","date_system":"1900"}

{"sheet":"entrata_-_titoli","index":0,"n_rows":23,"n_cols":4,"rows_kept":23,"cut":false,"hidden":false,"merged":[[0,2,0,4],[2,1,2,2]]}
[null,null,"Comune di Lozio\nProvincia di Brescia\n\nDati \"Bilancio Facile\" - Rendiconto - Entrate\n"]
[]
[null,"TITOLO",null,"TOTALE"]
[null,null,null,2016]
[null,null,null,"ACCERTAMENTI CP"]
[null,1,"Entrate correnti di natura tributaria, contributiva e perequativa",{"$f":"'entrate_tributarie_-_categorie'!F10","v":326887.31}]
[null,2,"Trasferimenti correnti",{"$f":"entrate_da_trasferimenti_corren!F11","v":28577.09}]
[null,3,"Entrate extratributarie",{"$f":"'entrate_extratributarie_-_categ'!F11","v":169288.34999999998}]
[null,4,"Entrate in conto capitale",{"$f":"'entrate_in_conto_capitale_-_cat'!F11","v":53684.54}]
[null,5,"Entrate da riduzione di attività finanziarie",{"$f":"'entrate_in_conto_capitale_-_rid'!F10","v":0}]
[null,6,"Accensione Prestiti",{"$f":"'entrate_in_conto_capitale_-_acc'!F10","v":0}]
[null,7,"Anticipazioni da istituto tesoriere/cassiere",0]
[null,9,"Entrate per conto terzi e partite di giro",86347.39]
[null,null,null,0]
[null,null,"TOTALE",{"$f":"SUM(D6:D14)","v":664784.68000000005}]
{"$rows_empty":7}
[null,null," "]

{"sheet":"entrate_tributarie_-_categorie","index":1,"n_rows":10,"n_cols":6,"rows_kept":10,"cut":false,"hidden":false,"merged":[[0,2,0,5],[2,1,2,2],[2,3,2,4]]}
[null,null,"Comune di Lozio\nProvincia di Brescia\n\nDati \"Bilancio Facile\" - Rendiconto - Entrate tributarie\n"]
[]
[null,"TITOLO 1",null,"CATEGORIA",null,"TOTALE"]
[{"$nulls":5},2016]
[{"$nulls":5},"ACCERTAMENTI CP"]
[null,1,"Entrate correnti di natura tributaria, contributiva e perequativa",10101,"Imposte, tasse e proventi assimilati",304466.67]
[null,null,null,10104,"Compartecipazioni di tributi",0]
[null,null,null,10301,"Fondi perequativi da Amministrazioni Centrali",22420.639999999999]
[null,null,null,10302,"Fondi perequativi dalla Regione o Provincia auton.",0]
[null,null,"TOTALE",null,null,{"$f":"SUM(F6:F9)","v":326887.31}]

{"sheet":"entrate_da_trasferimenti_corren","index":2,"n_rows":11,"n_cols":6,"rows_kept":11,"cut":false,"hidden":false,"merged":[[0,2,0,5],[2,1,2,2],[2,3,2,4]]}
[null,null,"Comune di Lozio\nProvincia di Brescia\n\nDati \"Bilancio Facile\" - Rendiconto - Entrate da trasferimenti correnti\n"]
[]
[null,"TITOLO 2",null,"CATEGORIA",null,"TOTALE"]
[{"$nulls":5},2016]
[{"$nulls":5},"ACCERTAMENTI CP"]
[null,2,"Trasferimenti correnti",20101,"Trasferimenti correnti da Amministrazioni pubbliche",26480.09]
[null,null,null,20102,"Trasferimenti correnti da Famiglie",0]
[null,null,null,20103,"Trasferimenti correnti da Imprese",2097]
[null,null,null,20104,"Trasferimenti correnti da Istituzioni Sociali Private",0]
[null,null,null,20105,"Trasferimenti correnti dall’Unione europea e dal Resto del Mondo",0]
[null,null,"TOTALE",null,null,{"$f":"SUM(F6:F10)","v":28577.09}]

{"sheet":"entrate_extratributarie_-_categ","index":3,"n_rows":11,"n_cols":6,"rows_kept":11,"cut":false,"hidden":false,"merged":[[0,2,0,5],[2,1,2,2],[2,3,2,4]]}
[null,null,"Comune di Lozio\nProvincia di Brescia\n\nDati \"Bilancio Facile\"  - Rendiconto - Entrate extratributarie\n"]
[]
[null,"TITOLO 3",null,"CATEGORIA",null,"TOTALE"]
[{"$nulls":5},2016]
[{"$nulls":5},"ACCERTAMENTI CP"]
[null,3,"Entrate extratributarie",30100,"Vendita di beni e servizi e proventi derivanti dalla gestione dei beni",158667.93]
[null,null,null,30200,"Proventi derivanti dall'attività di controllo e repressione delle irregolarità e degli illeciti",1784.78]
[null,null,null,30300,"Interessi attivi",0.18]
[null,null,null,30400,"Altre entrate da redditi da capitale",0]
[null,null,null,30500,"Rimborsi e altre entrate correnti",8835.4599999999991]
[null,null,"TOTALE",null,null,{"$f":"SUM(F6:F10)","v":169288.34999999998}]

{"sheet":"entrate_in_conto_capitale_-_cat","index":4,"n_rows":11,"n_cols":6,"rows_kept":11,"cut":false,"hidden":false,"merged":[[0,2,0,5],[2,1,2,2],[2,3,2,4]]}
[null,null,"Comune di Lozio\nProvincia di Brescia\n\nDati \"Bilancio Facile\" - Rendiconto - Entrate in conto capitale\n"]
[]
[null,"TITOLO 4",null,"CATEGORIA",null,"TOTALE"]
[{"$nulls":5},2016]
[{"$nulls":5},"ACCERTAMENTI CP"]
[null,4,"Entrate in conto capitale",40100,"Tributi in conto capitale",0]
[null,null,null,40200,"Contributi agli investimenti",25422.81]
[null,null,null,40300,"Altri trasferimenti in conto capitale",8923.81]
[null,null,null,40400,"Entrate da alienazione di beni materiali e immateriali",6790]
[null,null,null,40500,"Altre entrate in conto capitale",12547.92]
[null,null,"TOTALE",null,null,{"$f":"SUM(F6:F10)","v":53684.54}]

{"sheet":"entrate_in_conto_capitale_-_rid","index":5,"n_rows":10,"n_cols":6,"rows_kept":10,"cut":false,"hidden":false,"merged":[[0,2,0,5],[2,1,2,2],[2,3,2,4]]}
[null,null,"Comune di Lozio\nProvincia di Brescia\n\nDati \"Bilancio Facile\" - Rendiconto - Entrate da riduzione di attività finanziarie\n"]
[]
[null,"TITOLO 5",null,"CATEGORIA",null,"TOTALE"]
[{"$nulls":5},2016]
[{"$nulls":5},"ACCERTAMENTI CP"]
[null,5,"Entrate da riduzione di attività finanziarie",50100,"Alienazione di attività finanziarie",0]
[null,null,null,50200,"Riscossione crediti di breve termine",0]
[null,null,null,50300,"Riscossione crediti di medio-lungo termine",0]
[null,null,null,50400,"Altre entrate per riduzione di attività finanziarie",0]
[null,null,"TOTALE",null,null,{"$f":"SUM(F6:F9)","v":0}]

{"sheet":"entrate_in_conto_capitale_-_acc","index":6,"n_rows":10,"n_cols":6,"rows_kept":10,"cut":false,"hidden":false,"merged":[[0,2,0,5],[2,1,2,2],[2,3,2,4]]}
[null,null,"Comune di Lozio\nProvincia di Brescia\n\nDati \"Bilancio Facile\" - Rendiconto - Entrate da accensione prestiti\n"]
[]
[null,"TITOLO 6",null,"CATEGORIA",null,"TOTALE"]
[{"$nulls":5},2016]
[{"$nulls":5},"ACCERTAMENTI CP"]
[null,6,"Accensione Prestiti",60100,"Emissione di titoli obbligazionari",0]
[null,null,null,60200,"Accensione prestiti a breve termine",0]
[null,null,null,60300,"Accensione mutui e altri finanziamenti a medio lungo termine",0]
[null,null,null,60400,"Altre forme di indebitamento",0]
[null,null,"TOTALE",null,null,{"$f":"SUM(F6:F9)","v":0}]

{"sheet":"principali_entrate_tributarie","index":7,"n_rows":11,"n_cols":6,"rows_kept":11,"cut":false,"hidden":false,"merged":[[0,2,0,5],[2,1,2,2],[2,3,2,4]]}
[null,null,"Comune di Lozio\nProvincia di Brescia\n\nDati \"Bilancio Facile\" - Rendiconto - Principali Entrate di natura tributaria, contributiva e perequativa\n"]
[]
[null,"TITOLO 1",null,"CATEGORIA",null,"TOTALE"]
[{"$nulls":5},2016]
[{"$nulls":5},"ACCERTAMENTI CP"]
[null,1,"Entrate correnti di natura tributaria, contributiva e perequativa",null,"IMU",187940.56]
[{"$nulls":4},"TARI",71495.429999999993]
[{"$nulls":4},"TASI",0]
[{"$nulls":4},"ETC.",{"$f":"F11-F6-F7-F8-F10","v":67451.320000000007}]
[{"$nulls":5},0]
[null,null,"TOTALE",null,null,{"$f":"'entrate_tributarie_-_categorie'!F10","v":326887.31}]

{"sheet":"principali_entrate_da_trasferim","index":8,"n_rows":11,"n_cols":6,"rows_kept":11,"cut":false,"hidden":false,"merged":[[0,2,0,5],[2,1,2,2],[2,3,2,4]]}
[null,null,"Comune di Lozio\nProvincia di Brescia\n\nDati \"Bilancio Facile\" - Rendiconto - Principali entrate da trasferimenti correnti\n"]
[]
[null,"TITOLO 2",null,"CATEGORIA",null,"TOTALE"]
[{"$nulls":5},2016]
[{"$nulls":5},"ACCERTAMENTI CP"]
[null,2,"Trasferimenti correnti",null,"TRASFERIMENTI DALLO STATO",18246.53]
[{"$nulls":4},"TRASFERIMENTI DALLA REGIONE",0]
[{"$nulls":4},"TRASFERIMENTI DALLA PROVINCIA",0]
[{"$nulls":4},"ETC.",{"$f":"F11-F6-F7-F10","v":10330.560000000001}]
[{"$nulls":5},0]
[null,null,"TOTALE",null,null,{"$f":"entrate_da_trasferimenti_corren!F11","v":28577.09}]

{"sheet":"principali_entrate_extratributa","index":9,"n_rows":11,"n_cols":6,"rows_kept":11,"cut":false,"hidden":false,"merged":[[0,2,0,5],[2,1,2,2],[2,3,2,4]]}
[null,null,"Comune di Lozio\nProvincia di Brescia\n\nDati \"Bilancio Facile\" - Rendiconto - Principali entrate extratributarie\n"]
[]
[null,"TITOLO 3",null,"CATEGORIA",null,"TOTALE"]
[{"$nulls":5},2016]
[{"$nulls":5},"ACCERTAMENTI CP"]
[null,3,"Entrate extratributarie",null,"PROVENTI DEI SERVIZI",9453.8700000000008]
[{"$nulls":4},"PROVENTI DA SANZIONI CDS",0]
[{"$nulls":4},"ETC.",{"$f":"F11-F6-F7-F9-F10","v":159834.47999999998}]
[{"$nulls":5},0]
[{"$nulls":5},0]
[null,null,"TOTALE",null,null,{"$f":"'entrate_extratributarie_-_categ'!F11","v":169288.34999999998}]

{"sheet":"principali_entrate_in_conto_cap","index":10,"n_rows":11,"n_cols":6,"rows_kept":11,"cut":false,"hidden":false,"merged":[[0,2,0,5],[2,1,2,2],[2,3,2,4]]}
[null,null,"Comune di Lozio\nProvincia di Brescia\n\nDati \"Bilancio Facile\" - Rendiconto - Principali entrate in conto capitale\n"]
[]
[null,"TITOLI 4 – 5 – 6",null,"CATEGORIA",null,"TOTALE"]
[{"$nulls":5},2016]
[{"$nulls":5},"ACCERTAMENTI CP"]
[{"$nulls":5},{"$f":"'entrate_in_conto_capitale_-_cat'!F11","v":53684.54}]
[{"$nulls":5},{"$f":"'entrata_-_titoli'!D10","v":0}]
[{"$nulls":5},{"$f":"'entrata_-_titoli'!D11","v":0}]
[{"$nulls":5},{"$f":"'entrata_-_titoli'!D12","v":0}]
[{"$nulls":5},0]
[null,null,"TOTALE",null,null,{"$f":"'entrate_in_conto_capitale_-_cat'!F11","v":53684.54}]

{"sheet":"spesa_-_titoli","index":11,"n_rows":13,"n_cols":4,"rows_kept":13,"cut":false,"hidden":false,"merged":[[0,2,0,5],[2,1,2,2]]}
[null,null,"Comune di Lozio\nProvincia di Brescia\n\nDati \"Bilancio Facile\" - Rendiconto - Spese\n"]
[]
[null,"TITOLO",null,"TOTALE"]
[null,null,null,2016]
[null,null,null,"IMPEGNI CP"]
[null,1,"Spese correnti",449227.99]
[null,2,"Spese in conto capitale",131195.94]
[null,3,"Spese per incremento di attività finanziarie",0]
[null,4,"Rimborso prestiti",38665.97]
[null,5,"Chiusura anticipazioni da istituto tesoriere",0]
[null,7,"Spese per conto terzi e partite di giro",86347.39]
[null,null,null,0]
[null,null,"TOTALE",{"$f":"SUM(D6:D12)","v":705437.28999999992}]

{"sheet":"spese_correnti_-_missioni","index":12,"n_rows":29,"n_cols":5,"rows_kept":29,"cut":false,"hidden":false,"merged":[[0,2,0,6],[2,1,2,2],[2,3,2,4],[28,1,28,2]]}
[null,null,"Comune di Lozio\nProvincia di Brescia\n\nDati \"Bilancio Facile\" - Rendiconto - Spese per missione\n"]
[]
[null,"MISSIONE",null,"SPESE CORRENTI"]
[null,null,null,"2016\nCASSA","2016\nIMPEGNI CP"]
[null,1,"SERVIZI ISTITUZIONALI, GENERALI E DI GESTIONE",543951.17000000004,202649.06]
[null,2,"GIUSTIZIA",0,0]
[null,3,"ORDINE PUBBLICO E SICUREZZA",0,0]
[null,4,"ISTRUZIONE E DIRITTO ALLO STUDIO",37384.370000000003,24406.17]
[null,5,"TUTELA E VALORIZZAZIONE DEI BENI E DELLE ATTIVITA' CULTURALI",6193.22,4473.3599999999997]
[null,6,"POLITICHE GIOVANILI, SPORT E TEMPO LIBERO",252731.13,2145.7800000000002]
[null,7,"TURISMO",282208.32,2600]
[null,8,"ASSETTO DEL TERRITORIO ED EDILIZIA ABITATIVA",6487.48,0]
[null,9,"SVILUPPO SOSTENIBILE E TUTELA DEL TERRITORIO E DELL'AMBIENTE",1280913.1200000001,66327.66]
[null,10,"TRASPORTI E DIRITTO ALLA MOBILITA'",1000075.63,80459.009999999995]
[null,11,"SOCCORSO CIVILE",6502.85,5136.42]
[null,12,"DIRITTI SOCIALI, POLITICHE SOCIALI E FAMIGLIA",61194.99,33781.01]
[null,13,"TUTELA DELLA SALUTE",0,0]
[null,14,"SVILUPPO ECONOMICO E COMPETITIVITA'",353800,0]
[null,15,"POLITICHE PER IL LAVORO E LA FORMAZIONE PROFESSIONALE",0,0]
[null,16,"AGRICOLTURA, POLITICHE AGROALIMENTARI E PESCA",5760,5759.95]
[null,17,"ENERGIA E DIVERSIFICAZIONE DELLE FONTI ENERGETICHE",0,0]
[null,18,"RELAZIONI CON LE ALTRE AUTONOMIE TERRITORIALI E LOCALI RELAZIONI CON LE ALTRE AUTONOMIE TERRITORIALI E LOCALI",0,0]
[null,19,"RELAZIONI INTERNAZIONALI",0,0]
[null,20,"FONDI E ACCANTONAMENTI",7487.88,0]
[null,50,"DEBITO PUBBLICO",60502,21489.57]
[null,60,"ANTICIPAZIONI FINANZIARIE",139571,0]
[null,99,"SERVIZI PER CONTO TERZI",292492.12,86347.39]
[null,null,null,0,0]
[null,"TOTALE",null,{"$f":"SUM(D5:D28)","v":4337255.28},{"$f":"SUM(E5:E28)","v":535575.38}]

{"sheet":"spese_correnti_-_macroaggregati","index":13,"n_rows":17,"n_cols":4,"rows_kept":17,"cut":false,"hidden":false,"merged":[[0,2,0,4],[2,1,2,2]]}
[null,null,"Comune di Lozio\nProvincia di Brescia\n\nDati \"Bilancio Facile\" - Rendiconto - Spese per macroaggregati\n"]
[]
[null,"TITOLO 1",null,"TOTALE"]
[null,null,null,2016]
[null,null,null,"IMPEGNI CP"]
[null,1,"Redditi da lavoro dipendente",105799.18]
[null,2,"Imposte e tasse a carico dell'ente",8633.52]
[null,3,"Acquisto di beni e servizi",230226.1]
[null,4,"Trasferimenti correnti",63643.6]
[null,5,"Trasferimenti di tributi",0]
[null,6,"Fondi perequativi",0]
[null,7,"Interessi passivi",21489.57]
[null,8,"Altre spese per redditi da capitale",0]
[null,9,"Rimborsi e poste correttive delle entrate",2897]
[null,10,"Altre spese correnti",16539.02]
[null,null,null,0]
[null,null,"TOTALE",{"$f":"SUM(D6:D16)","v":449227.99}]

{"sheet":"spese_in_conto_capitale_-_missi","index":14,"n_rows":30,"n_cols":4,"rows_kept":30,"cut":false,"hidden":false,"merged":[[0,2,0,5],[2,1,2,2],[29,1,29,2]]}
[null,null,"Comune di Lozio\nProvincia di Brescia\n\nDati \"Bilancio Facile\" - Rendiconto - Spese in conto capitale per missioni\n"]
[]
[null,"MISSIONE",null,"SPESE IN C/CAPITALE"]
[null,null,null,2016]
[null,null,null,"IMPEGNI CP"]
[null,1,"SERVIZI ISTITUZIONALI, GENERALI E DI GESTIONE",8256.0300000000007]
[null,2,"GIUSTIZIA",0]
[null,3,"ORDINE PUBBLICO E SICUREZZA",0]
[null,4,"ISTRUZIONE E DIRITTO ALLO STUDIO",0]
[null,5,"TUTELA E VALORIZZAZIONE DEI BENI E DELLE ATTIVITA' CULTURALI",0]
[null,6,"POLITICHE GIOVANILI, SPORT E TEMPO LIBERO",0]
[null,7,"TURISMO",8250]
[null,8,"ASSETTO DEL TERRITORIO ED EDILIZIA ABITATIVA",0]
[null,9,"SVILUPPO SOSTENIBILE E TUTELA DEL TERRITORIO E DELL'AMBIENTE",54240.88]
[null,10,"TRASPORTI E DIRITTO ALLA MOBILITA'",44631.32]
[null,11,"SOCCORSO CIVILE",0]
[null,12,"DIRITTI SOCIALI, POLITICHE SOCIALI E FAMIGLIA",15817.71]
[null,13,"TUTELA DELLA SALUTE",0]
[null,14,"SVILUPPO ECONOMICO E COMPETITIVITA'",0]
[null,15,"POLITICHE PER IL LAVORO E LA FORMAZIONE PROFESSIONALE",0]
[null,16,"AGRICOLTURA, POLITICHE AGROALIMENTARI E PESCA",0]
[null,17,"ENERGIA E DIVERSIFICAZIONE DELLE FONTI ENERGETICHE",0]
[null,18,"RELAZIONI CON LE ALTRE AUTONOMIE TERRITORIALI E LOCALI RELAZIONI CON LE ALTRE AUTONOMIE TERRITORIALI E LOCALI",0]
[null,19,"RELAZIONI INTERNAZIONALI",0]
[null,20,"FONDI E ACCANTONAMENTI",0]
[null,50,"DEBITO PUBBLICO",0]
[null,60,"ANTICIPAZIONI FINANZIARIE",0]
[null,99,"SERVIZI PER CONTO TERZI",0]
[null,null,null,0]
[null,"TOTALE",null,{"$f":"SUM(D6:D29)","v":131195.94}]

{"sheet":"spese_in_conto_capitale_-_macro","index":15,"n_rows":12,"n_cols":4,"rows_kept":12,"cut":false,"hidden":false,"merged":[[0,2,0,5],[2,1,2,2]]}
[null,null,"Comune di Lozio\nProvincia di Brescia\n\nDati \"Bilancio Facile\" - Rendiconto - Spese in conto capitale per macroaggregati\n"]
[]
[null,"TITOLO 2",null,"TOTALE TOTALE"]
[null,null,null,2016]
[null,null,null,"IMPEGNI CP"]
[null,1,"Tributi in conto capitale a carico dell'ente",0]
[null,2,"Investimenti fissi lordi e acquisto di terreni",95945.94]
[null,3,"Contributi agli investimenti",35250]
[null,4,"Altri trasferimenti in conto capitale",0]
[null,5,"Altre spese in conto capitale",0]
[null,null,null,0]
[null,null,"TOTALE",{"$f":"SUM(D6:D11)","v":131195.94}]

{"sheet":"principali_spese_per_investimen","index":16,"n_rows":11,"n_cols":4,"rows_kept":11,"cut":false,"hidden":false,"merged":[[0,2,0,5],[2,1,2,2]]}
[null,null,"Comune di Lozio\nProvincia di Brescia\n\nDati \"Bilancio Facile\" - Rendiconto - Principali spese per investimento\n"]
[]
[null,"TITOLO 2",null,"TOTALE TOTALE"]
[null,null,null,2016]
[null,null,null,"IMPEGNI CP"]
[null,1,"Scuole",0]
[null,2,"Strade",44631.32]
[null,3,"Patrimonio comunale",8256.0300000000007]
[null,4,"Altro",{"$f":"D11-D6-D7-D8-D10","v":78308.59}]
[null,null,null,0]
[null,null,"TOTALE",{"$f":"'spese_in_conto_capitale_-_macro'!D12","v":131195.94}]

{"sheet":"equilibri_di_bilancio","index":17,"n_rows":67,"n_cols":13,"rows_kept":67,"cut":false,"hidden":false,"merged":[[47,2,47,3],[0,3,0,8],[2,1,2,9],[7,2,7,3],[19,2,19,3],[31,2,31,3],[39,2,39,3]]}
[null,null,null,"Comune di Lozio\nProvincia di Brescia\n\nDati \"Bilancio Facile\" - Rendiconto - Equilibri 2016\n"]
[]
[null,"VERIFICA  DEGLI  EQUILIBRI"]
[null,null,null," ",{"$nulls":7},16,6]
[{"$nulls":4},"ENTRATA",null,null,"SPESA",null,"DIFFERENZIALE"]
[{"$nulls":4},2016,null,null,2016,null,2016]
[]
[null,1,"Equilibrio della parte corrente (pareggio economico)"]
[]
[null,null,null,"Titolo",null,null,"Titolo"]
[null,null,null,"UTILIZZO AVANZO",0]
[null,null,null,"FPV SPESE CORRENTI",0]
[null,null,null,1,{"$f":"'entrata_-_titoli'!D6","v":326887.31},null,1,{"$f":"'spesa_-_titoli'!D6","v":449227.99}]
[null,null,null,2,{"$f":"'entrata_-_titoli'!D7","v":28577.09},null,4,{"$f":"'spesa_-_titoli'!D9","v":38665.97}]
[null,null,null,3,{"$f":"'entrata_-_titoli'!D8","v":169288.34999999998}]
[null,null,null,"TOTALE",{"$f":"SUM(E11:E15)","v":524752.75},null,"TOTALE",{"$f":"SUM(H13:H15)","v":487893.95999999996},null,{"$f":"E16-H16","v":36858.790000000037}]
[]
[]
[]
[null,2,"Equilibrio della parte investimenti",{"$nulls":4}," "]
[]
[null,null,null,"Titolo",null,null,"Titolo"]
[null,null,null,"UTILIZZO AVANZO",21084.04]
[null,null,null,"FPV SPESE IN CONTO CAPITALE",63158.93]
[null,null,null,4,{"$f":"'entrata_-_titoli'!D9","v":53684.54},null,2,{"$f":"'spesa_-_titoli'!D7","v":131195.94}]
[null,null,null,5,{"$f":"'entrata_-_titoli'!D10","v":0},null,3,{"$f":"'spesa_-_titoli'!D8","v":0}]
[null,null,null,6,{"$f":"'entrata_-_titoli'!D11","v":0}]
[null,null,null,"TOTALE",{"$f":"SUM(E23:E27)","v":137927.51},null,"TOTALE",{"$f":"SUM(H25:H27)","v":131195.94},null,{"$f":"E28-H28","v":6731.570000000007}]
[]
[]
[]
[null,3,"Movimento fondi - Anticipazione di cassa"]
[]
[null,null,null,"Titolo",null,null,"Titolo"]
[null,null,null,7,{"$f":"'entrata_-_titoli'!D12","v":0},null,5,{"$f":"'spesa_-_titoli'!D10","v":0}]
[null,null,null,"TOTALE",{"$f":"SUM(E35)","v":0},null,"TOTALE",{"$f":"SUM(H35)","v":0},null,{"$f":"E36-H36","v":0}]
[]
[]
[]
[null,4,"Equilibrio delle partite di giro"]
[]
[null,null,null,"Titolo",null,null,"Titolo"]
[null,null,null,9,{"$f":"'entrata_-_titoli'!D13","v":86347.39},null,7,{"$f":"'spesa_-_titoli'!D11","v":86347.39}]
[null,null,null,"TOTALE",{"$f":"SUM(E43)","v":86347.39},null,"TOTALE",{"$f":"SUM(H43)","v":86347.39},null,{"$f":"E44-H44","v":0}]
[]
[]
[]
[null,5,"Pareggio finanziario"]
[]
[null,null,null,"Titolo",null,null,"Titolo"]
[null,null,null,"UTILIZZO AVANZO PARTE CORRENTE",{"$f":"E11","v":0}]
[null,null,null,"UTILIZZO AVANZO PARTE CAPITALE",{"$f":"E23","v":21084.04}]
[null,null,null,"FPV SPESE CORRENTI",{"$f":"E12","v":0}]
[null,null,null,"FPV SPESE IN CONTO CAPITALE",{"$f":"E24","v":63158.93}]
[null,null,null,1,{"$f":"E13","v":326887.31},null,1,{"$f":"H13","v":449227.99}]
[null,null,null,2,{"$f":"E14","v":28577.09},null,2,{"$f":"H25","v":131195.94}]
[null,null,null,3,{"$f":"E15","v":169288.34999999998},null,3,{"$f":"H26","v":0}]
[null,null,null,4,{"$f":"E25","v":53684.54},null,4,{"$f":"H14","v":38665.97}]
[null,null,null,5,{"$f":"E26","v":0},null,5,{"$f":"H35","v":0}]
[null,null,null,6,{"$f":"E27","v":0},null,7,{"$f":"H43","v":86347.39}]
[null,null,null,7,{"$f":"E35","v":0}]
[null,null,null,9,{"$f":"E43","v":86347.39}]
[]
[null,null,null,"TOTALE",{"$f":"SUM(E51:E63)","v":749027.65},null,"TOTALE",{"$f":"SUM(H55:H63)","v":705437.28999999992},null,{"$f":"E64-H64","v":43590.360000000102}]
[]
[]
[{"$nulls":9},{"$f":"SUM(J16:J44)","v":43590.360000000044}]

{"sheet":"entità_mutui","index":18,"n_rows":17,"n_cols":7,"rows_kept":17,"cut":false,"hidden":false,"merged":[[0,2,0,5]]}
[null,null,"Comune di Lozio\nProvincia di Brescia\n\nDati \"Bilancio Facile\" - Rendiconto - Entità dei mutui\n"]
[]
[null,null,2015,2016,2017,2018,2019]
[]
[null,"DEBITO RESIDUO INIZIALE",959271.24,{"$f":"C9","v":921873.85},{"$f":"D9","v":883207.88},843224.14,801857.37]
[null,"NUOVI PRESTITI",0,0,0,0,0]
[null,"RIMBORSO PRESTITI",-37397.39,-38665.97,-39983.74,-41366.769999999997,-42803.47]
[null,"ESTINZIONI ANTICIPATE",0,0,0,0,0]
[null,"TOTALE DEBITO AL 31/12",{"$f":"SUM(C5:C8)","v":921873.85},{"$f":"SUM(D5:D8)","v":883207.88},843224.14,801857.37,759053.9]
{"$rows_empty":7}
[null," "]